[Event "CZE-ch Youth B12 2022"]
[Site "Luhacovice"]
[Date "2022.03.14"]
[Round "4.5"]
[White "Martirosyan, David"]
[Black "Vana, Jan"]
[Result "1/2-1/2"]
[ECO "A04"]
[WhiteElo "1725"]
[BlackElo "1609"]
[Annotator "NA"]
[PlyCount "145"]
[EventDate "2022.03.12"]
[EventType "swiss"]
[EventCountry "CZE"]
[SourceTitle "playchess.com"]
[Source "ChessBase"]
[SourceQuality "1"]
[TimeControl "5400+30"]

1. Nf3 {[%emt 0:00:31]} c5 {[%emt 0:00:36]} 2. e3 {[%emt 0:00:10]} Nf6 {[%emt 0:00:39]} 3. d4 {[%emt 0:00:16]} g6 {[%emt 0:01:37]} 4. c4 {[%emt 0:00:43]} Bg7 {[%emt 0:00:37]} 5. Nc3 {[%emt 0:00:16]} O-O {[%emt 0:00:51]} 6. Be2 {[%emt 0:00:20]} cxd4 {[%emt 0:01:06]} 7. Nxd4 {[%emt 0:02:25]} Nc6 {[%emt 0:02:48]} 8. O-O {[%emt 0:00:42]} Nxd4 {[%emt 0:05:11]} 9. exd4 {[%emt 0:00:07]} d5 {[%emt 0:02:40]} 10. Bf4 {[%emt 0:03:43]} a6 {[%emt 0:11:24]} 11. Rc1 {[%emt 0:06:55]} dxc4 {[%emt 0:07:07]} 12. Bxc4 {[%emt 0:00:48]} b5 {[%emt 0:01:00]} 13. Be2 {[%emt 0:01:17]} Bb7 {[%emt 0:01:33]} 14. Re1 {[%emt 0:01:38]} Rc8 {[%emt 0:03:10]} 15. a3 {[%emt 0:07:51]} Nd5 {[%emt 0:10:21]} 16. Nxd5 {[%emt 0:06:54]} Qxd5 {[%emt 0:04:13]} 17. Bf3 {[%emt 0:07:36]} Qd7 {[%emt 0:02:47]} 18. Bxb7 {[%emt 0:02:01]} Qxb7 {[%emt 0:01:19]} 19. Qd2 {[%emt 0:03:25]} Rxc1 {[%emt 0:03:52]} 20. Rxc1 {[%emt 0:02:02]} Rc8 {[%emt 0:00:51]} 21. Rc5 {[%emt 0:01:53]} Qd7 {[%emt 0:03:53]} 22. Rxc8+ {[%emt 0:02:38]} Qxc8 {[%emt 0:00:02]} 23. h3 {[%emt 0:00:24]} Qc4 {[%emt 0:03:30]} 24. Be3 {[%emt 0:01:44]} Qc7 {[%emt 0:10:48]} 25. b3 {[%emt 0:07:50]} Qd6 {[%emt 0:03:52]} 26. a4 {[%emt 0:04:37]} Qd7 {[%emt 0:03:53]} 27. axb5 {[%emt 0:01:23]} axb5 {[%emt 0:03:35]} 28. Qd3 {[%emt 0:09:07]} h6 {[%emt 0:06:17]} 29. Qd2 {[%emt 0:00:31]} Kh7 {[%emt 0:00:10]} 30. Qd3 {[%emt 0:01:43]} Qd5 {[%emt 0:00:25]} 31. f3 {[%emt 0:01:53]} e5 {[%emt 0:01:07]} 32. Qe4 {[%emt 0:06:16]} Qxe4 {[%emt 0:01:42]} 33. fxe4 {[%emt 0:00:02]} exd4 {[%emt 0:00:15]} 34. Bf2 {[%emt 0:01:00]} g5 {[%emt 0:01:32]} 35. Kf1 {[%emt 0:00:53]} d3 {[%emt 0:00:59]} 36. Be1 {[%emt 0:02:05]} Bd4 {[%emt 0:00:57]} 37. Bb4 {[%emt 0:00:45]} Kg6 {[%emt 0:00:51]} 38. Ke1 {[%emt 0:00:50]} f5 {[%emt 0:00:50]} 39. exf5+ {[%emt 0:02:43]} Kxf5 {[%emt 0:00:11]} 40. Bf8 {[%emt 0:01:27]} h5 {[%emt 0:00:27]} 41. Bh6 {[%emt 0:00:26]} Be3 {[%emt 0:01:12]} 42. h4 {[%emt 0:00:38]} Kg4 {[%emt 0:00:36]} 43. g3 {[%emt 0:00:49]} Kxg3 {[%emt 0:00:36]} 44. Bxg5 {[%emt 0:00:15]} Kf3 {[%emt 0:00:30]} 45. b4 {[%emt 0:01:06]} Ke4 {[%emt 0:00:23]} 46. Be7 {[%emt 0:00:46]} Kd4 {[%emt 0:00:36]} 47. Bc5+ {[%emt 0:00:11]} Ke4 {[%emt 0:00:01]} 48. Be7 {[%emt 0:00:01]} Kf5 {[%emt 0:00:37]} 49. Bc5 {[%emt 0:00:23]} Bxc5 {[%emt 0:00:50]} 50. bxc5 {[%emt 0:00:05]} Ke5 {[%emt 0:00:11]} 51. Kd2 {[%emt 0:00:09]} Kd5 {[%emt 0:00:06]} 52. Kxd3 {[%emt 0:00:09]} Kxc5 {[%emt 0:00:06]} 53. Kc3 {[%emt 0:00:16]} Kd5 {[%emt 0:00:27]} 54. Kb4 {[%emt 0:01:16]} Kc6 {[%emt 0:00:22]} 55. Kc3 {[%emt 0:00:27]} Kc5 {[%emt 0:00:06]} 56. Kb3 {[%emt 0:00:08]} b4 {[%emt 0:00:36]} 57. Kc2 {[%emt 0:00:22]} Kc4 {[%emt 0:00:42]} 58. Kb2 {[%emt 0:00:15]} b3 {[%emt 0:00:47]} 59. Kb1 {[%emt 0:00:38]} Kb5 {[%emt 0:00:50]} 60. Kb2 {[%emt 0:00:48]} Kb4 {[%emt 0:00:20]} 61. Kb1 {[%emt 0:00:22]} Kc3 {[%emt 0:00:51]} 62. Kc1 {[%emt 0:00:18]} Kd3 {[%emt 0:00:47]} 63. Kb2 {[%emt 0:00:27]} Ke3 {[%emt 0:00:09]} 64. Kxb3 {[%emt 0:00:13]} Kf3 {[%emt 0:00:05]} 65. Kc3 {[%emt 0:00:09]} Kg3 {[%emt 0:00:09]} 66. Kd3 {[%emt 0:00:29]} Kxh4 {[%emt 0:00:07]} 67. Ke2 {[%emt 0:00:22]} Kg3 {[%emt 0:00:11]} 68. Kf1 {[%emt 0:00:16]} Kh2 {[%emt 0:00:06]} 69. Kf2 {[%emt 0:00:26]} h4 {[%emt 0:00:07]} 70. Kf1 {[%emt 0:00:43]} h3 {[%emt 0:00:15]} 71. Kf2 {[%emt 0:00:09]} Kh1 {[%emt 0:00:05]} 72. Kf1 {[%emt 0:00:06]} h2 {[%emt 0:00:02]} 73. Kf2 1/2-1/2

[Event "CZE-ch Youth B12 2022"]
[Site "Luhacovice"]
[Date "2022.03.14"]
[Round "4.6"]
[White "Mik, Tomas"]
[Black "Chon, Jeremy"]
[Result "1-0"]
[ECO "B27"]
[WhiteElo "1643"]
[BlackElo "1455"]
[Annotator "NA"]
[PlyCount "79"]
[EventDate "2022.03.12"]
[EventType "swiss"]
[EventCountry "CZE"]
[SourceTitle "playchess.com"]
[Source "ChessBase"]
[SourceQuality "1"]
[TimeControl "5400+30"]

1. e4 {[%emt 0:00:05]} c5 {[%emt 0:00:01]} 2. Nf3 {[%emt 0:00:14]} g6 {[%emt 0:00:03]} 3. d4 {[%emt 0:00:13]} cxd4 {[%emt 0:00:03]} 4. Nxd4 {[%emt 0:00:10]} Bg7 {[%emt 0:00:04]} 5. Nc3 {[%emt 0:00:19]} Nc6 {[%emt 0:00:02]} 6. Be3 {[%emt 0:00:33]} Nf6 {[%emt 0:00:03]} 7. Nxc6 {[%emt 0:00:18]} bxc6 {[%emt 0:00:02]} 8. e5 {[%emt 0:00:22]} Ng8 {[%emt 0:00:13]} 9. Bd4 {[%emt 0:00:25]} f6 {[%emt 0:05:35]} 10. f4 {[%emt 0:00:46]} Qa5 {[%emt 0:01:42]} 11. Qe2 {[%emt 0:01:19]} c5 {[%emt 0:14:25]} 12. Bf2 {[%emt 0:02:44]} Qb4 {[%emt 0:03:45]} 13. Qf3 {[%emt 0:03:07]} Bb7 {[%emt 0:04:19]} 14. Qe3 {[%emt 0:00:38]} Nh6 {[%emt 0:05:06]} 15. h3 {[%emt 0:05:51]} Nf5 {[%emt 0:01:50]} 16. Qd2 {[%emt 0:01:49]} fxe5 {[%emt 0:01:38]} 17. O-O-O {[%emt 0:00:56]} Bc6 {[%emt 0:02:20]} 18. Nd5 {[%emt 0:12:06]} Qxd2+ {[%emt 0:07:29]} 19. Rxd2 {[%emt 0:00:05]} Bxd5 {[%emt 0:01:03]} 20. Rxd5 {[%emt 0:00:19]} exf4 {[%emt 0:03:15]} 21. Bxc5 {[%emt 0:00:58]} Ne3 {[%emt 0:02:44]} 22. Bxe3 {[%emt 0:05:21]} fxe3 {[%emt 0:01:18]} 23. Bb5 {[%emt 0:00:35]} Rd8 {[%emt 0:02:21]} 24. Rhd1 {[%emt 0:00:39]} Bh6 {[%emt 0:00:16]} 25. Kb1 {[%emt 0:02:02]} e6 {[%emt 0:03:41]} 26. Rxd7 {[%emt 0:00:47]} Rxd7 {[%emt 0:02:42]} 27. Rxd7 {[%emt 0:00:11]} a6 {[%emt 0:04:35]} 28. Bc6 {[%emt 0:01:56]} e2 {[%emt 0:00:49]} 29. Rd2+ {[%emt 0:00:24]} Ke7 {[%emt 0:00:46]} 30. Rxe2 {[%emt 0:00:11]} Kd6 {[%emt 0:01:52]} 31. Bf3 {[%emt 0:03:25]} Re8 {[%emt 0:00:37]} 32. Re4 {[%emt 0:03:35]} Kc5 {[%emt 0:02:16]} 33. a4 {[%emt 0:04:03]} Bd2 {[%emt 0:01:21]} 34. c3 {[%emt 0:00:58]} e5 {[%emt 0:01:16]} 35. b4+ {[%emt 0:02:21]} Kb6 {[%emt 0:00:39]} 36. Kc2 {[%emt 0:00:11]} Bf4 {[%emt 0:00:18]} 37. a5+ {[%emt 0:01:18]} Kb5 {[%emt 0:00:49]} 38. Kb3 {[%emt 0:00:20]} Bh2 {[%emt 0:01:44]} 39. c4+ {[%emt 0:00:26]} Kc6 {[%emt 0:00:03]} 40. Rxe5+ {[%emt 0:00:06]} 1-0

[Event "CZE-ch Youth B12 2022"]
[Site "Luhacovice"]
[Date "2022.03.14"]
[Round "4.7"]
[White "Stary, Vojtech"]
[Black "Pasek, Josef"]
[Result "1-0"]
[ECO "B07"]
[WhiteElo "1640"]
[BlackElo "1351"]
[Annotator "NA"]
[PlyCount "105"]
[EventDate "2022.03.12"]
[EventType "swiss"]
[EventCountry "CZE"]
[SourceTitle "playchess.com"]
[Source "ChessBase"]
[SourceQuality "1"]
[TimeControl "5400+30"]

1. d4 {[%emt 0:00:02]} Nf6 {[%emt 0:00:29]} 2. Nc3 {[%emt 0:00:09]} g6 {[%emt 0:00:33]} 3. e4 {[%emt 0:00:07]} d6 {[%emt 0:03:13]} 4. Bg5 {[%emt 0:00:16]} Bg7 {[%emt 0:01:01]} 5. e5 {[%emt 0:00:15]} dxe5 {[%emt 0:00:13]} 6. dxe5 {[%emt 0:00:07]} Qxd1+ {[%emt 0:01:17]} 7. Rxd1 {[%emt 0:00:09]} Ng8 {[%emt 0:01:36]} 8. Nb5 {[%emt 0:23:56]} Na6 {[%emt 0:13:13]} 9. Nf3 {[%emt 0:02:34]} c6 {[%emt 0:03:20]} 10. Nbd4 {[%emt 0:01:57]} Nc7 {[%emt 0:01:00]} 11. Bc4 {[%emt 0:02:10]} a6 {[%emt 0:12:04]} 12. O-O {[%emt 0:04:20]} b5 {[%emt 0:05:40]} 13. Bd3 {[%emt 0:09:55]} c5 {[%emt 0:03:05]} 14. Nc6 {[%emt 0:09:03]} Bb7 {[%emt 0:03:06]} 15. Be4 {[%emt 0:01:03]} Ne6 {[%emt 0:02:17]} 16. Rfe1 {[%emt 0:04:36]} Rc8 {[%emt 0:05:42]} 17. Na5 {[%emt 0:00:44]} Bxe4 {[%emt 0:00:30]} 18. Rxe4 {[%emt 0:00:35]} h5 {[%emt 0:07:17]} 19. Bc1 {[%emt 0:07:41]} Nh6 {[%emt 0:01:17]} 20. c3 {[%emt 0:06:13]} O-O {[%emt 0:05:00]} 21. Ng5 {[%emt 0:02:08]} Rfd8 {[%emt 0:04:56]} 22. Rde1 {[%emt 0:04:26]} Nxg5 {[%emt 0:02:40]} 23. Bxg5 {[%emt 0:01:03]} Nf5 {[%emt 0:00:34]} 24. h3 {[%emt 0:02:43]} h4 {[%emt 0:01:24]} 25. c4 {[%emt 0:04:04]} b4 {[%emt 0:00:54]} 26. Nb3 {[%emt 0:00:59]} Bh6 27. Bxh6 {[%emt 0:01:07]} Nxh6 {[%emt 0:03:26]} 28. Rxh4 {[%emt 0:00:41]} Nf5 {[%emt 0:00:41]} 29. Rhe4 {[%emt 0:00:58]} e6 {[%emt 0:02:39]} 30. R4e2 {[%emt 0:02:38]} Nd4 {[%emt 0:00:51]} 31. Nxd4 {[%emt 0:03:18]} Rxd4 {[%emt 0:00:05]} 32. b3 {[%emt 0:00:19]} Rcd8 {[%emt 0:00:11]} 33. f3 {[%emt 0:00:39]} Kh7 {[%emt 0:00:26]} 34. Kf2 {[%emt 0:00:46]} Kh6 {[%emt 0:00:10]} 35. Re4 {[%emt 0:00:41]} Rd2+ {[%emt 0:00:45]} 36. R1e2 {[%emt 0:00:25]} g5 {[%emt 0:00:33]} 37. g4 {[%emt 0:01:36]} R8d4 {[%emt 0:00:31]} 38. Rxd2 {[%emt 0:00:57]} Rxd2+ {[%emt 0:00:05]} 39. Re2 {[%emt 0:00:20]} Rd4 {[%emt 0:00:16]} 40. Ke3 {[%emt 0:00:37]} Kg6 {[%emt 0:00:08]} 41. Rd2 {[%emt 0:00:24]} Rxd2 {[%emt 0:00:04]} 42. Kxd2 {[%emt 0:00:14]} f6 {[%emt 0:00:10]} 43. Ke3 {[%emt 0:01:15]} f5 {[%emt 0:00:48]} 44. f4 {[%emt 0:02:09]} fxg4 {[%emt 0:01:15]} 45. hxg4 {[%emt 0:00:15]} gxf4+ {[%emt 0:00:30]} 46. Kxf4 {[%emt 0:00:12]} a5 {[%emt 0:05:11]} 47. Kf3 {[%emt 0:00:32]} Kh6 {[%emt 0:00:08]} 48. Kg3 {[%emt 0:00:51]} Kg5 {[%emt 0:00:08]} 49. Kh3 {[%emt 0:01:16]} Kf4 {[%emt 0:00:22]} 50. Kh4 {[%emt 0:00:27]} Kxe5 {[%emt 0:00:05]} 51. g5 {[%emt 0:00:10]} Kd6 52. g6 Ke7 53. Kg5 1-0

[Event "CZE-ch Youth B12 2022"]
[Site "Luhacovice"]
[Date "2022.03.14"]
[Round "4.8"]
[White "Kutil, Adam"]
[Black "Stejskal, Jakub"]
[Result "0-1"]
[ECO "D32"]
[WhiteElo "1544"]
[BlackElo "1557"]
[Annotator "NA"]
[PlyCount "72"]
[EventDate "2022.03.12"]
[EventType "swiss"]
[EventCountry "CZE"]
[SourceTitle "playchess.com"]
[Source "ChessBase"]
[SourceQuality "1"]
[TimeControl "5400+30"]

1. d4 {[%emt 0:00:30]} d5 {[%emt 0:00:44]} 2. c4 {[%emt 0:00:12]} e6 {[%emt 0:00:11]} 3. Nc3 {[%emt 0:00:55]} c5 {[%emt 0:02:36]} 4. cxd5 {[%emt 0:02:48]} exd5 {[%emt 0:01:17]} 5. dxc5 {[%emt 0:01:31]} d4 {[%emt 0:01:30]} 6. Ne4 {[%emt 0:02:02]} Nc6 {[%emt 0:09:01]} 7. Bf4 {[%emt 0:02:29]} Nf6 {[%emt 0:02:36]} 8. Bg5 {[%emt 0:02:47]} Be7 {[%emt 0:01:06]} 9. Bxf6 {[%emt 0:00:56]} Bxf6 {[%emt 0:00:13]} 10. Nd6+ {[%emt 0:00:09]} Ke7 {[%emt 0:01:34]} 11. Nf3 {[%emt 0:02:09]} Qa5+ {[%emt 0:03:16]} 12. Nd2 {[%emt 0:01:01]} Qxc5 {[%emt 0:02:08]} 13. N2e4 {[%emt 0:00:24]} Qb4+ {[%emt 0:01:45]} 14. Qd2 {[%emt 0:00:16]} Qxd2+ {[%emt 0:00:08]} 15. Kxd2 {[%emt 0:00:09]} Rd8 {[%emt 0:01:32]} 16. Nxf6 {[%emt 0:03:30]} Kxf6 {[%emt 0:01:36]} 17. Ne4+ {[%emt 0:00:16]} Ke7 {[%emt 0:00:16]} 18. g3 {[%emt 0:00:48]} b6 {[%emt 0:06:28]} 19. Bg2 {[%emt 0:00:36]} Bb7 {[%emt 0:00:13]} 20. Ng5 {[%emt 0:03:49]} h6 {[%emt 0:02:53]} 21. Rac1 {[%emt 0:02:14]} Rac8 {[%emt 0:00:43]} 22. Bxc6 {[%emt 0:01:55]} Bxc6 {[%emt 0:00:34]} 23. Nf3 {[%emt 0:00:17]} d3 {[%emt 0:08:05]} 24. Rhe1 {[%emt 0:03:06]} dxe2+ {[%emt 0:01:32]} 25. Kxe2 {[%emt 0:02:17]} Bb5+ {[%emt 0:02:05]} 26. Ke3 {[%emt 0:00:32]} Rxc1 {[%emt 0:01:05]} 27. Rxc1 {[%emt 0:00:18]} Rd3+ {[%emt 0:00:48]} 28. Kf4 {[%emt 0:00:35]} g5+ {[%emt 0:02:06]} 29. Nxg5 {[%emt 0:02:49]} hxg5+ {[%emt 0:00:15]} 30. Kxg5 {[%emt 0:00:08]} Rd2 {[%emt 0:00:34]} 31. Re1+ {[%emt 0:03:03]} Kf8 {[%emt 0:00:32]} 32. Re5 {[%emt 0:00:55]} Rxb2 {[%emt 0:01:22]} 33. h4 {[%emt 0:00:20]} Bd3 {[%emt 0:01:44]} 34. f4 {[%emt 0:00:41]} Kg7 {[%emt 0:02:52]} 35. f5 {[%emt 0:02:37]} f6+ {[%emt 0:00:36]} 36. Kh5 {[%emt 0:00:37]} fxe5 {[%emt 0:00:19]} 0-1

[Event "CZE-ch Youth B12 2022"]
[Site "Luhacovice"]
[Date "2022.03.14"]
[Round "4.9"]
[White "Jansky, Adam"]
[Black "Mydlar, Matej"]
[Result "1-0"]
[ECO "B28"]
[WhiteElo "1233"]
[BlackElo "1554"]
[Annotator "NA"]
[PlyCount "49"]
[EventDate "2022.03.12"]
[EventType "swiss"]
[EventCountry "CZE"]
[SourceTitle "playchess.com"]
[Source "ChessBase"]
[SourceQuality "1"]
[TimeControl "5400+30"]

1. e4 c5 2. Nf3 a6 3. d4 {[%emt 0:01:08]} cxd4 {[%emt 0:01:21]} 4. Nxd4 {[%emt 0:00:30]} e5 {[%emt 0:00:30]} 5. Nf3 {[%emt 0:00:30]} Nf6 {[%emt 0:00:30]} 6. Nc3 {[%emt 0:00:30]} Nc6 {[%emt 0:00:30]} 7. Bc4 {[%emt 0:00:30]} Bb4 {[%emt 0:00:30]} 8. O-O {[%emt 0:00:30]} O-O {[%emt 0:00:30]} 9. Bg5 {[%emt 0:01:53]} b5 {[%emt 0:04:24]} 10. Bd5 {[%emt 0:01:25]} h6 {[%emt 0:01:42]} 11. Bh4 {[%emt 0:00:21]} Qc7 {[%emt 0:00:50]} 12. Bxf6 {[%emt 0:00:56]} gxf6 {[%emt 0:00:13]} 13. Nh4 {[%emt 0:00:26]} d6 {[%emt 0:00:40]} 14. Qh5 {[%emt 0:00:45]} Kg7 {[%emt 0:00:39]} 15. Rae1 {[%emt 0:02:25]} Rh8 {[%emt 0:13:39]} 16. Re3 {[%emt 0:01:24]} Bb7 {[%emt 0:06:25]} 17. Nf5+ {[%emt 0:02:50]} Kf8 {[%emt 0:00:17]} 18. Rg3 {[%emt 0:00:26]} Bxc3 {[%emt 0:12:51]} 19. Rxc3 {[%emt 0:05:16]} Qd7 {[%emt 0:05:08]} 20. Nxd6 {[%emt 0:02:04]} Nd8 {[%emt 0:03:42]} 21. Nxb7 {[%emt 0:04:52]} Nxb7 {[%emt 0:00:24]} 22. Qh4 {[%emt 0:01:59]} Ke7 {[%emt 0:05:31]} 23. Rf3 {[%emt 0:01:03]} Raf8 {[%emt 0:03:14]} 24. Qxf6+ {[%emt 0:01:04]} Ke8 {[%emt 0:04:32]} 25. Bc6 {[%emt 0:00:06]} 1-0

[Event "CZE-ch Youth B12 2022"]
[Site "Luhacovice"]
[Date "2022.03.14"]
[Round "4.10"]
[White "Knapek, Jan"]
[Black "Kozdon, Marek"]
[Result "0-1"]
[ECO "B42"]
[WhiteElo "1340"]
[BlackElo "1183"]
[Annotator "NA"]
[PlyCount "100"]
[EventDate "2022.03.12"]
[EventType "swiss"]
[EventCountry "CZE"]
[SourceTitle "playchess.com"]
[Source "ChessBase"]
[SourceQuality "1"]
[TimeControl "5400+30"]

1. e4 {[%emt 0:00:04]} c5 {[%emt 0:01:21]} 2. Nf3 {[%emt 0:00:21]} e6 {[%emt 0:02:14]} 3. d4 {[%emt 0:00:15]} cxd4 {[%emt 0:02:12]} 4. Nxd4 {[%emt 0:00:36]} a6 {[%emt 0:02:06]} 5. Bd3 {[%emt 0:00:52]} Qc7 {[%emt 0:03:34]} 6. O-O {[%emt 0:00:44]} d6 {[%emt 0:02:13]} 7. c4 {[%emt 0:02:34]} b6 {[%emt 0:01:27]} 8. Nc3 {[%emt 0:01:15]} Bb7 {[%emt 0:02:43]} 9. f4 {[%emt 0:01:44]} Nd7 {[%emt 0:05:40]} 10. f5 {[%emt 0:03:51]} e5 {[%emt 0:05:09]} 11. Nc2 {[%emt 0:01:10]} Ngf6 {[%emt 0:00:46]} 12. g4 {[%emt 0:01:41]} Nc5 {[%emt 0:00:31]} 13. g5 {[%emt 0:01:27]} Nfxe4 {[%emt 0:00:23]} 14. Bxe4 {[%emt 0:01:13]} Nxe4 {[%emt 0:03:14]} 15. Nxe4 {[%emt 0:01:11]} Bxe4 {[%emt 0:00:32]} 16. Qe2 {[%emt 0:01:13]} Bxc2 {[%emt 0:00:19]} 17. Qxc2 {[%emt 0:00:25]} Rc8 {[%emt 0:00:17]} 18. Qa4+ {[%emt 0:00:27]} Kd8 {[%emt 0:01:09]} 19. Qxa6 {[%emt 0:00:24]} Qc5+ {[%emt 0:01:03]} 20. Rf2 {[%emt 0:00:43]} Qxc4 {[%emt 0:02:41]} 21. Qxb6+ {[%emt 0:00:16]} Qc7 {[%emt 0:00:23]} 22. Qxc7+ {[%emt 0:01:29]} Rxc7 {[%emt 0:00:08]} 23. Be3 {[%emt 0:00:11]} Kd7 {[%emt 0:01:18]} 24. Rc1 {[%emt 0:00:17]} Rxc1+ {[%emt 0:00:14]} 25. Bxc1 {[%emt 0:00:07]} Be7 {[%emt 0:00:02]} 26. b3 {[%emt 0:01:00]} d5 {[%emt 0:01:07]} 27. h4 {[%emt 0:00:59]} Bc5 28. Kg2 Bxf2 {[%emt 0:00:32]} 29. Kxf2 {[%emt 0:00:37]} g6 {[%emt 0:00:26]} 30. f6 {[%emt 0:00:30]} Rc8 {[%emt 0:00:17]} 31. Be3 {[%emt 0:00:48]} Rc2+ {[%emt 0:00:22]} 32. Kf3 {[%emt 0:00:58]} Rxa2 {[%emt 0:01:47]} 33. b4 {[%emt 0:00:26]} Ra3 {[%emt 0:00:25]} 34. Ke2 {[%emt 0:00:11]} Rxe3+ {[%emt 0:01:59]} 35. Kxe3 {[%emt 0:00:08]} Kc6 {[%emt 0:00:06]} 36. Kf3 {[%emt 0:01:03]} Kb5 {[%emt 0:00:18]} 37. Kg4 {[%emt 0:00:29]} Kxb4 38. h5 {[%emt 0:00:51]} d4 {[%emt 0:00:25]} 39. hxg6 {[%emt 0:00:53]} hxg6 {[%emt 0:00:09]} 40. Kf3 {[%emt 0:00:17]} Kc3 {[%emt 0:00:12]} 41. Ke2 {[%emt 0:00:20]} Kc2 {[%emt 0:00:09]} 42. Ke1 {[%emt 0:00:35]} d3 {[%emt 0:00:07]} 43. Kf2 {[%emt 0:00:17]} d2 {[%emt 0:00:06]} 44. Ke3 {[%emt 0:01:01]} d1=Q {[%emt 0:00:12]} 45. Ke4 {[%emt 0:00:13]} Qd4+ {[%emt 0:00:34]} 46. Kf3 {[%emt 0:00:19]} e4+ {[%emt 0:00:06]} 47. Ke2 {[%emt 0:00:40]} Qd2+ {[%emt 0:00:18]} 48. Kf1 {[%emt 0:00:28]} e3 {[%emt 0:00:13]} 49. Kg1 {[%emt 0:00:32]} e2 {[%emt 0:00:34]} 50. Kh1 {[%emt 0:00:16]} e1=R# {[%emt 0:00:09]} 0-1

[Event "CZE-ch Youth B12 2022"]
[Site "Luhacovice"]
[Date "2022.03.14"]
[Round "4.11"]
[White "Letal, Hynek"]
[Black "Tejnor, Martin"]
[Result "0-1"]
[ECO "B90"]
[WhiteElo "1371"]
[BlackElo "1367"]
[Annotator "NA"]
[PlyCount "36"]
[EventDate "2022.03.12"]
[EventType "swiss"]
[EventCountry "CZE"]
[SourceTitle "playchess.com"]
[Source "ChessBase"]
[SourceQuality "1"]
[TimeControl "5400+30"]

1. e4 {[%emt 0:00:04]} c5 {[%emt 0:00:07]} 2. Nf3 {[%emt 0:00:10]} d6 {[%emt 0:00:07]} 3. d4 {[%emt 0:00:13]} cxd4 {[%emt 0:00:10]} 4. Nxd4 {[%emt 0:00:09]} Nf6 {[%emt 0:00:47]} 5. Nc3 {[%emt 0:00:32]} a6 {[%emt 0:00:08]} 6. Bc4 {[%emt 0:00:51]} e6 {[%emt 0:00:21]} 7. Bg5 {[%emt 0:00:52]} b5 {[%emt 0:00:11]} 8. Bb3 {[%emt 0:01:08]} Be7 {[%emt 0:00:48]} 9. O-O {[%emt 0:02:28]} Bb7 {[%emt 0:00:07]} 10. Re1 {[%emt 0:00:59]} Nbd7 {[%emt 0:03:30]} 11. f4 {[%emt 0:04:03]} h6 {[%emt 0:02:21]} 12. e5 {[%emt 0:04:26]} dxe5 {[%emt 0:11:36]} 13. fxe5 {[%emt 0:01:58]} Nh7 {[%emt 0:03:16]} 14. Bxe6 {[%emt 0:18:53]} Nxg5 {[%emt 0:05:08]} 15. Rf1 {[%emt 0:12:03]} O-O {[%emt 0:01:08]} 16. Bf5 {[%emt 0:01:57]} Nxe5 {[%emt 0:01:01]} 17. Re1 {[%emt 0:02:18]} Bc5 {[%emt 0:01:00]} 18. Nce2 {[%emt 0:01:13]} Qd5 {[%emt 0:01:05]} 0-1

[Event "CZE-ch Youth B12 2022"]
[Site "Luhacovice"]
[Date "2022.03.14"]
[Round "4.12"]
[White "Topencik, Bruno"]
[Black "Ruzicka, Oto"]
[Result "1-0"]
[ECO "C47"]
[WhiteElo "1339"]
[BlackElo "1233"]
[Annotator "NA"]
[PlyCount "103"]
[EventDate "2022.03.12"]
[EventType "swiss"]
[EventCountry "CZE"]
[SourceTitle "playchess.com"]
[Source "ChessBase"]
[SourceQuality "1"]
[TimeControl "5400+30"]

1. e4 {[%emt 0:00:05]} e5 {[%emt 0:00:23]} 2. Nf3 {[%emt 0:00:09]} Nc6 {[%emt 0:00:30]} 3. Bc4 {[%emt 0:00:08]} Nf6 {[%emt 0:00:25]} 4. Nc3 {[%emt 0:00:43]} Nxe4 {[%emt 0:00:43]} 5. Nxe4 {[%emt 0:01:14]} d5 {[%emt 0:00:46]} 6. Bb5 {[%emt 0:03:07]} dxe4 {[%emt 0:01:21]} 7. Bxc6+ {[%emt 0:00:39]} bxc6 {[%emt 0:01:46]} 8. Nxe5 {[%emt 0:00:55]} Qd6 {[%emt 0:00:45]} 9. Nc4 {[%emt 0:00:45]} Qe6 {[%emt 0:00:25]} 10. Ne3 {[%emt 0:01:05]} Bd6 {[%emt 0:00:54]} 11. d3 {[%emt 0:01:03]} f5 {[%emt 0:03:58]} 12. O-O {[%emt 0:03:28]} O-O {[%emt 0:02:56]} 13. Nc4 {[%emt 0:02:14]} Bc5 {[%emt 0:00:59]} 14. Be3 {[%emt 0:01:56]} Bxe3 {[%emt 0:04:21]} 15. fxe3 {[%emt 0:01:15]} Ba6 {[%emt 0:01:54]} 16. b3 {[%emt 0:02:20]} Rad8 {[%emt 0:03:45]} 17. Qe2 {[%emt 0:01:41]} Rd7 {[%emt 0:05:46]} 18. d4 {[%emt 0:03:44]} Rfd8 {[%emt 0:03:32]} 19. c3 {[%emt 0:05:39]} c5 {[%emt 0:03:08]} 20. Rad1 {[%emt 0:01:29]} cxd4 {[%emt 0:04:41]} 21. Rxd4 {[%emt 0:01:28]} Rxd4 {[%emt 0:05:15]} 22. cxd4 {[%emt 0:00:37]} c5 {[%emt 0:01:57]} 23. Rd1 {[%emt 0:01:30]} cxd4 {[%emt 0:01:58]} 24. Rxd4 {[%emt 0:00:27]} Rxd4 {[%emt 0:08:16]} 25. exd4 {[%emt 0:00:08]} e3 {[%emt 0:00:39]} 26. g3 {[%emt 0:02:28]} Qe7 {[%emt 0:07:36]} 27. Qxe3 {[%emt 0:03:34]} Qd7 {[%emt 0:03:24]} 28. Kf2 {[%emt 0:04:34]} Bb5 {[%emt 0:02:55]} 29. Qe5 {[%emt 0:02:37]} Bc6 {[%emt 0:05:57]} 30. Qb8+ {[%emt 0:01:29]} Qe8 {[%emt 0:02:12]} 31. Qxe8+ {[%emt 0:02:01]} Bxe8 {[%emt 0:00:08]} 32. Ke3 {[%emt 0:00:53]} Bd7 {[%emt 0:01:17]} 33. Kf4 {[%emt 0:00:45]} h6 {[%emt 0:01:43]} 34. h4 {[%emt 0:01:29]} Kf8 {[%emt 0:01:47]} 35. a4 {[%emt 0:04:10]} Ke7 {[%emt 0:03:39]} 36. d5 {[%emt 0:02:51]} Kd8 {[%emt 0:00:29]} 37. Ne3 {[%emt 0:03:10]} g6 {[%emt 0:02:04]} 38. Nc4 {[%emt 0:01:38]} Ke7 {[%emt 0:01:24]} 39. Ke5 {[%emt 0:01:18]} Be8 {[%emt 0:02:16]} 40. Nb2 {[%emt 0:02:03]} Bd7 {[%emt 0:00:47]} 41. Nd3 {[%emt 0:00:42]} h5 {[%emt 0:02:12]} 42. d6+ {[%emt 0:00:48]} Kf7 {[%emt 0:00:37]} 43. Nc5 {[%emt 0:01:00]} Bc6 {[%emt 0:02:39]} 44. b4 {[%emt 0:00:45]} Bf3 {[%emt 0:02:23]} 45. b5 {[%emt 0:00:59]} Be2 {[%emt 0:00:39]} 46. Nb7 {[%emt 0:03:28]} Ke8 {[%emt 0:02:55]} 47. Nc5 {[%emt 0:03:08]} Kf7 {[%emt 0:00:38]} 48. Kf4 {[%emt 0:00:42]} Bd1 {[%emt 0:00:48]} 49. a5 {[%emt 0:00:35]} Be2 {[%emt 0:00:28]} 50. b6 {[%emt 0:00:21]} axb6 {[%emt 0:00:29]} 51. axb6 {[%emt 0:00:08]} Bf3 {[%emt 0:01:05]} 52. Kxf3 {[%emt 0:00:08]} 1-0

[Event "CZE-ch Youth B12 2022"]
[Site "Luhacovice"]
[Date "2022.03.15"]
[Round "5.1"]
[White "Mikulka, Martin Michael"]
[Black "Roubal, Matyas"]
[Result "1-0"]
[ECO "C13"]
[WhiteElo "1406"]
[BlackElo "1870"]
[Annotator "NA"]
[PlyCount "77"]
[EventDate "2022.03.12"]
[EventType "swiss"]
[EventCountry "CZE"]
[SourceTitle "playchess.com"]
[Source "ChessBase"]
[SourceQuality "1"]
[TimeControl "5400+30"]

1. d4 d5 2. Nc3 e6 3. e4 Nf6 4. Bg5 Be7 5. e5 Nfd7 6. h4 c5 7. Bxe7 Qxe7 8. Nb5 $1 Kd8 9. Qg4 f6 10. exf6 (10. f4 $1 $14) 10... gxf6 (10... Nxf6 $15 11. Qf4 Rf8 12. Qd6+ Qxd6 13. Nxd6 cxd4 14. Nxc8 Kxc8) 11. O-O-O (11. Qg3 $14 Na6 12. O-O-O) 11... a6 12. Nc3 cxd4 13. Qxd4 Nc6 14. Qd2 b5 15. g3 Kc7 16. Bg2 Nb6 17. Nf3 Kb7 18. Nd4 Rd8 19. Rhe1 (19. Nxc6 $16 Kxc6 20. Qe3) 19... Qb4 20. a3 Qd6 21. Nxc6 Qxc6 22. Qh6 Nc4 23. Qxf6 Rd6 24. Nb1 a5 25. Nd2 b4 (25... Ra6 $142 26. f4 Qc5) 26. Nxc4 Qxc4 27. b3 Qc7 28. a4 Rc6 29. Rd2 Bd7 30. Qe5 (30. Qh6 $18) 30... Qb6 31. Qd4 Qc7 32. Qe5 Qb6 33. Bh3 ({Not} 33. Qg7 Rc7 $16) 33... Rac8 34. Ree2 R8c7 35. Kb1 Rc8 {[#]} 36. Rxd5 $1 exd5 37. Bxd7 Qc5 38. Bxc8+ $18 Rxc8 39. Qe7+ 1-0